bitfinex/quotes_ETHUSD_20240714
["timestamp","ask_amount","ask_price","bid_price","bid_amount"]
[1720954224275,1.07920267,3210.9,3210.7,0.04316041]
[1720954224485,0.32585671,3211.1,3210.7,0.04316041]
[1720954224486,1.07920267,3210.8,3210.7,0.04316041]
[1720954229398,1.07918015,3210.8,3210.7,0.04316041]
[1720954232456,0.96749687,3210.9,3210.7,0.04316041]
[1720954232667,2.04668562,3210.8,3210.7,0.04316041]
[1720954233068,2.04668578,3210.8,3210.7,0.04316041]
[1720954233472,1.07918891,3210.8,3210.7,0.04316041]
[1720954233691,2.36918474,3210.8,3210.7,0.04316041]
[1720954234072,2.36918474,3210.8,3210.4,7.0941017]
[1720954234391,2.05269824,3210.7,3210.4,8.02993187]
[1720954234611,2.05269824,3210.6,3210.4,8.02993187]
[1720954234776,1.07918891,3210.5,3210.4,8.02993187]
[1720954234974,1.07918891,3210.5,3210.4,0.93583017]
[1720954235299,1.07918891,3210.5,3209.8,10.0941017]
[1720954235503,0.97350933,3210.3,3209.8,7.0941017]
[1720954235710,0.97350933,3210.0,3209.8,7.0941017]
[1720954235873,2.36933769,3209.9,3209.8,7.0941017]
[1720954236068,2.70227946,3209.9,3209.8,7.0941017]
[1720954236599,1.07934186,3209.9,3209.8,7.0941017]
[1720954236804,1.6218392,3209.9,3209.8,7.0941017]
[1720954237113,2.70118106,3209.9,3209.8,7.0941017]
[1720954237272,2.4874,3210.4,3209.8,7.0941017]
[1720954237469,1.62103897,3209.9,3209.8,7.0941017]
[1720954237893,0.24874,3210.3,3209.8,7.0941017]
[1720954238384,2.4874,3210.4,3209.8,7.0941017]
[1720954238560,2.70101062,3209.9,3209.8,7.0941017]
[1720954239000,1.07960503,3209.9,3209.8,7.0941017]
[1720954239878,0.32589568,3210.3,3209.8,7.0941017]
[1720954240067,1.62108907,3209.9,3209.8,7.0941017]
[1720954240269,1.07957245,3209.9,3209.8,7.0941017]
[1720954240467,1.07957245,3209.9,3209.5,19.765]
[1720954240698,0.97238081,3209.7,3209.6,1.9765]
[1720954241019,2.05195326,3209.7,3209.2,7.0941017]
[1720954241298,2.05201209,3209.6,3209.2,7.0941017]
[1720954241498,0.97238081,3209.7,3209.2,7.0941017]
[1720954241702,1.29650774,3209.8,3209.2,7.0941017]
[1720954241703,0.97238081,3209.6,3209.2,7.0941017]
[1720954241880,0.97238081,3209.6,3209.3,0.70941017]
[1720954242266,0.97238081,3209.7,3209.3,0.70941017]
[1720954243282,2.4874,3209.9,3209.4,0.04286242]
[1720954243596,0.9719216,3209.7,3209.4,0.04286242]
[1720954244471,0.9719216,3209.5,3209.4,0.04286242]
[1720954244670,0.9719216,3209.5,3208.9,3.0]
[1720954245029,0.9719216,3209.5,3208.9,3.80495677]
[1720954245315,0.9719216,3209.5,3209.0,0.04310316]
[1720954245511,0.9719216,3209.3,3209.0,0.04310316]
[1720954245873,3.2546216,3209.4,3208.8,0.1158277]
[1720954246372,3.2546216,3209.4,3208.9,0.04316354]
[1720954248871,0.9719216,3209.5,3208.9,0.04316354]
[1720954249104,0.9719216,3209.6,3208.9,0.04316354]
[1720954250107,0.9719216,3209.6,3208.9,0.30838366]
[1720954250798,0.9719216,3209.9,3209.2,2.49278]
[1720954251022,0.9719216,3210.0,3209.5,2.3051]
[1720954251228,1.29589547,3210.2,3209.6,0.52252232]
[1720954251229,0.9719216,3210.2,3209.6,0.52252232]
[1720954251514,1.29781728,3210.3,3209.6,0.52252232]
[1720954252599,0.32589568,3210.3,3209.6,0.52252232]
[1720954252784,0.32589568,3210.3,3209.7,2.49243]
[1720954252987,0.32589568,3210.3,3209.9,2.49228]
[1720954253322,0.32589568,3210.3,3210.0,0.04244688]
[1720954254029,2.71839568,3210.3,3209.8,0.30149523]
[1720954254316,2.71839568,3210.3,3209.9,0.04250722]
[1720954254489,0.97100203,3210.2,3209.9,0.04250722]
[1720954254690,0.97100203,3210.2,3209.3,2.49275]
[1720954254918,0.97100203,3210.2,3210.0,0.04244688]
[1720954255131,3.68939771,3210.3,3209.4,2.49267]
[1720954255334,3.68939771,3210.3,3210.1,0.04238655]
[1720954255489,3.68939771,3210.3,3209.5,0.249267]
[1720954255694,0.97100203,3210.2,3209.3,2.49275]
[1720954255895,0.97100203,3210.2,3209.6,0.04268826]
[1720954256091,0.97100203,3210.2,3209.2,4.79793]
[1720954256317,3.68939771,3210.3,3209.7,0.04262719]
[1720954256516,3.68939771,3210.3,3209.3,2.49274]
[1720954256702,3.68939771,3210.3,3209.2,4.79793]
[1720954256703,0.97100203,3210.2,3209.8,0.04257262]
[1720954256906,1.04888783,3210.2,3209.2,2.3051]
[1720954257129,1.04888783,3210.2,3209.9,0.04251228]
[1720954257330,1.04888783,3210.2,3209.2,7.79792]
[1720954257503,0.97100203,3210.2,3209.2,7.79792]
[1720954257835,3.68939771,3210.3,3209.3,1.78136155]
[1720954258343,2.05042925,3210.2,3209.3,1.78136155]
[1720954258523,0.97100203,3210.2,3209.3,1.78136155]
[1720954258896,3.68939771,3210.3,3209.3,4.27409155]
[1720954259327,2.05043433,3210.2,3209.3,4.27409155]
[1720954259597,0.97067122,3210.2,3209.4,0.95791916]
[1720954259845,0.97067122,3210.2,3209.5,0.04275367]
[1720954260825,1.07945749,3210.1,3209.5,0.04275367]
[1720954261011,0.97067122,3210.2,3209.5,0.04275367]
[1720954261338,2.71839568,3210.3,3209.5,0.56594267]
[1720954261339,3.6890669,3210.3,3209.5,0.56594267]
[1720954261540,2.05010824,3210.2,3209.5,0.56594267]
[1720954261843,3.6890669,3210.3,3209.5,0.56594267]
[1720954262002,2.05010951,3210.2,3209.5,0.56594267]
[1720954262198,1.07943829,3210.1,3209.5,0.56594267]
[1720954262625,1.07943829,3210.1,3209.5,0.04275367]
[1720954262827,0.97067122,3210.0,3209.5,0.04275367]
[1720954263152,0.97067122,3210.0,3209.1,7.0941017]
[1720954263153,2.05010951,3209.9,3209.1,7.0941017]
[1720954263445,1.07943829,3209.8,3209.1,7.0941017]
[1720954263647,1.07943829,3209.8,3209.2,0.04293619]
[1720954265239,0.32588269,3209.9,3209.2,0.75663998]
[1720954265442,1.07951583,3209.8,3209.5,2.49258]
[1720954265664,0.32588269,3209.9,3209.6,0.04273159]
[1720954266244,0.32588269,3209.9,3209.4,2.49267]
[1720954266448,0.32588269,3209.9,3209.5,0.85504626]
[1720954267838,0.32588269,3209.9,3209.8,4.98472]
[1720954268021,0.97022878,3210.5,3209.8,4.98472]
[1720954268022,0.97022878,3210.6,3210.0,2.49219]
[1720954268222,0.32586741,3210.4,3210.1,0.04242988]
[1720954270044,2.04955117,3210.3,3210.1,0.04242988]
[1720954270252,1.07932239,3210.2,3209.6,2.3898]
[1720954270423,1.07932239,3210.2,3209.7,0.60589792]
[1720954271146,4.32065117,3210.2,3209.7,0.04267124]
[1720954271351,2.04955117,3210.1,3209.7,0.04267124]
[1720954271528,0.97022878,3210.3,3209.6,2.49251]
[1720954271733,1.07935496,3210.2,3209.8,0.04261089]
[1720954272049,0.97022878,3210.3,3209.9,0.04255055]
[1720954272255,0.97022878,3210.1,3209.9,0.04255055]
[1720954272460,1.11386716,3210.3,3209.6,2.49251]
[1720954272628,0.97100645,3210.1,3209.7,0.04267124]
[1720954273032,1.11386716,3210.3,3209.7,0.04267124]
[1720954273359,1.07941653,3210.2,3209.7,0.04267124]
[1720954273658,1.07941653,3210.1,3209.7,0.04267124]
[1720954273956,1.11386716,3210.3,3209.7,0.04267124]
[1720954274126,1.07939258,3210.2,3209.7,0.04267124]
[1720954274320,1.07939258,3210.1,3209.7,0.04267124]
[1720954274516,1.07939258,3210.2,3209.5,2.49256]
[1720954274741,1.94405352,3210.4,3209.8,0.04261089]
[1720954274918,1.07939039,3210.3,3209.5,2.49256]
[1720954275124,1.07939039,3210.2,3209.9,0.04255055]
[1720954275358,1.07939039,3210.3,3209.6,0.249256]
[1720954275954,1.07939039,3210.3,3209.7,0.04267124]
[1720954277641,2.69826165,3210.3,3209.8,0.04261089]
[1720954277851,1.07939039,3210.2,3209.5,2.49256]
[1720954278067,1.94473867,3210.4,3209.6,0.29198759]
[1720954278249,2.69824943,3210.3,3209.6,0.29198759]
[1720954278569,2.69835616,3210.2,3209.6,0.29198759]
[1720954278895,1.07941668,3210.1,3209.6,0.04273159]
[1720954279027,2.69835616,3210.1,3209.6,0.04273159]
[1720954279224,1.07941668,3210.0,3209.3,2.49269]
[1720954279424,1.07941668,3210.0,3209.4,0.04282196]
[1720954279883,1.61893948,3209.9,3209.4,0.04282196]
[1720954280228,2.69835616,3209.8,3209.2,0.71370379]
[1720954280464,2.37532758,3209.7,3209.3,1.06264287]
[1720954280761,1.07941668,3209.6,3209.3,1.06264287]
[1720954281342,2.15918012,3209.5,3209.3,1.06264287]
[1720954281559,1.07960189,3209.4,3209.3,1.06264287]
[1720954281962,1.07960189,3209.5,3209.3,1.06264287]
[1720954284346,1.2959109,3209.6,3209.3,1.06264287]
[1720954284543,1.07961352,3209.5,3209.3,1.06264287]
[1720954284787,1.07961352,3209.4,3209.3,1.06264287]
[1720954284989,1.07961352,3209.5,3209.3,1.06264287]
[1720954285149,1.07961352,3209.4,3209.3,1.06264287]
[1720954285349,1.07961352,3209.4,3209.3,0.04288232]
[1720954285548,1.2959109,3209.6,3209.3,0.04288232]
[1720954285786,1.07960193,3209.5,3209.3,0.04288232]
[1720954285986,1.62178297,3209.7,3209.3,0.04288232]
[1720954286147,1.07954004,3209.6,3209.3,0.04288232]
[1720954286352,1.62178297,3209.7,3209.3,0.35752093]
[1720954286565,1.07953732,3209.6,3209.3,0.35752093]
[1720954286873,1.62178297,3209.7,3209.3,0.35752093]
[1720954287074,1.0795347,3209.6,3209.3,0.35752093]
[1720954287275,1.62178297,3209.7,3209.3,0.35752093]
[1720954287488,1.0795347,3209.6,3209.3,0.35752093]
[1720954287672,1.62178297,3209.7,3209.3,0.35752093]
[1720954287881,1.07953935,3209.6,3209.3,0.35752093]
[1720954288068,1.07953935,3209.5,3209.3,0.35752093]
[1720954289584,1.07953935,3209.5,3209.3,0.04288232]
[1720954289975,1.07953935,3209.5,3209.4,0.04286673]
[1720954290207,1.07953935,3209.5,3209.1,2.3898]
[1720954290513,1.07953935,3209.5,3209.2,0.04298745]
[1720954290672,1.2959109,3209.4,3209.2,0.04298745]
[1720954290874,2.37545025,3209.3,3208.8,7.2099294]
[1720954291188,1.07967766,3209.2,3208.9,0.04317146]
[1720954291516,1.2959109,3209.3,3208.9,0.04317146]
[1720954291807,1.07967855,3209.2,3208.9,0.04317146]
[1720954291986,1.2959109,3209.3,3208.9,0.04317146]
[1720954292193,1.0796757,3209.2,3208.9,0.04317146]
[1720954292403,1.2959109,3209.3,3208.9,0.04317146]
[1720954292726,1.07968873,3209.2,3208.9,0.04317146]
[1720954293012,1.2959109,3209.3,3208.9,0.04317146]
[1720954293319,1.07967856,3209.2,3208.9,0.04317146]
[1720954293523,1.2959109,3209.3,3208.9,0.04317146]
[1720954294418,1.29621807,3209.3,3208.9,0.04317146]
[1720954294719,2.37592106,3209.2,3208.9,0.04317146]
[1720954294894,1.29621807,3209.2,3208.9,0.04317146]
[1720954295416,1.29621807,3209.3,3208.9,0.04317146]
[1720954295616,2.37592661,3209.2,3208.9,0.04317146]
[1720954295790,1.29621807,3209.2,3208.9,0.04317146]
[1720954298445,1.3741165,3209.2,3208.9,0.04317146]
[1720954298598,1.29621807,3209.0,3208.9,0.04317146]
[1720954298796,2.37630282,3209.0,3208.9,0.04317146]
[1720954299122,4.78850282,3209.0,3208.9,0.04317146]
[1720954300147,3.49198729,3209.0,3208.9,0.04317146]
[1720954300433,4.78837603,3209.0,3208.9,0.04317146]
[1720954300799,3.70858874,3209.0,3208.9,0.04317146]
[1720954301000,4.78838855,3209.0,3208.9,0.04317146]
[1720954304328,4.78845072,3209.0,3208.9,0.04317146]
[1720954304732,4.78845549,3209.0,3208.9,0.04317146]
[1720954305274,3.49206675,3209.0,3208.9,0.04317146]
[1720954305553,4.78742849,3209.0,3208.9,0.04317146]
[1720954305765,3.56997328,3209.0,3208.9,0.04317146]
[1720954306128,5.18975639,3209.0,3208.9,0.04317146]
[1720954307354,2.49010653,3209.0,3208.9,0.04317146]
[1720954307626,3.57002329,3209.0,3208.9,0.04317146]
[1720954308967,3.49211676,3209.0,3208.9,0.04317146]
[1720954310784,3.49202989,3209.0,3208.9,0.04317146]
[1720954314102,2.4122,3209.0,3208.9,0.04317146]
[1720954314381,3.49203442,3209.0,3208.9,0.04317146]
[1720954316478,1.07983442,3209.0,3208.9,0.04317146]
[1720954317275,1.62024442,3209.1,3208.9,0.04317146]
[1720954317579,1.07981908,3209.0,3208.9,0.04317146]
[1720954317787,1.62024442,3209.1,3208.9,0.04317146]
[1720954317964,1.07981768,3209.0,3208.9,0.04317146]
[1720954318800,0.32570088,3209.1,3208.9,2.30507146]
[1720954318961,0.32570088,3209.1,3209.0,0.24208992]
[1720954319152,1.40538569,3209.1,3208.9,0.04317146]
[1720954319354,3.89842369,3209.1,3209.0,0.0400938]
[1720954319574,4.97822185,3209.1,3209.0,0.0400938]
[1720954319905,4.97822185,3209.1,3209.0,0.03700966]
[1720954320185,3.68319904,3209.1,3208.8,0.1158277]
[1720954320392,2.37512761,3209.0,3208.8,0.1158277]
[1720954320708,1.07984427,3208.9,3208.8,0.1158277]
[1720954320997,5.47476705,3208.9,3208.8,0.1158277]
[1720954322500,3.85544461,3208.9,3208.8,0.1158277]
[1720954323189,3.8555457,3208.9,3208.8,0.1158277]
[1720954324984,5.79922411,3208.9,3208.8,0.1158277]
[1720954325196,3.8555457,3208.9,3208.8,0.1158277]
[1720954325366,5.79922411,3208.9,3208.8,0.1158277]
[1720954325569,5.87715104,3208.9,3208.8,0.1158277]
[1720954326191,3.93347263,3208.9,3208.8,0.1158277]
[1720954326369,3.85563019,3208.9,3208.8,0.1158277]
[1720954326652,3.35777273,3208.9,3208.8,0.1158277]
[1720954328175,2.70044713,3208.9,3208.8,0.1158277]
[1720954328713,2.70055652,3208.9,3208.8,0.1158277]
[1720954329020,1.08007273,3208.9,3208.8,0.1158277]
[1720954329221,2.70055652,3208.9,3208.8,0.1158277]
[1720954329590,2.70054775,3208.9,3208.8,0.1158277]
[1720954329909,0.32570088,3209.1,3208.8,0.1158277]
[1720954330116,1.0799422,3208.9,3208.8,0.1158277]
[1720954330281,3.3372422,3208.9,3208.8,0.1158277]
[1720954330784,5.28204365,3208.9,3208.8,0.1158277]
[1720954331109,5.92853041,3208.9,3208.8,0.1158277]
[1720954331266,5.85061013,3208.9,3208.8,0.1158277]
[1720954331472,3.90580868,3208.9,3208.8,0.1158277]
[1720954331692,3.3372422,3208.9,3208.8,0.1158277]
[1720954332620,2.2573,3208.9,3208.8,0.1158277]
[1720954332784,1.07993619,3208.9,3208.8,0.1158277]
[1720954334706,3.02526763,3208.9,3208.8,0.1158277]
[1720954334878,1.07993619,3208.9,3208.8,0.1158277]
[1720954336005,1.07992844,3208.9,3208.8,0.1158277]
[1720954336479,3.02624644,3208.9,3208.8,0.1158277]
[1720954336785,1.07992844,3208.9,3208.8,0.1158277]
[1720954337100,3.02624644,3208.9,3208.8,0.1158277]
[1720954337904,1.07992844,3208.9,3208.8,0.1158277]
[1720954338094,3.02701542,3208.9,3208.8,0.16553327]
[1720954338406,1.07992844,3208.9,3208.8,0.16553327]
[1720954338611,3.02722626,3208.9,3208.8,0.1158277]
[1720954338824,1.07992844,3208.9,3208.8,0.1158277]
[1720954339007,3.02729366,3208.9,3208.8,0.1158277]
[1720954339184,3.32570088,3209.1,3208.8,0.1158277]
[1720954339379,3.02751616,3208.9,3208.8,0.1158277]
[1720954339601,1.07996385,3208.9,3208.8,0.1158277]
[1720954340914,1.15788121,3208.9,3208.8,0.1158277]
[1720954341079,3.41518121,3208.9,3208.8,0.1158277]
[1720954342518,2.33521736,3208.9,3208.8,0.1158277]
[1720954342708,3.41521999,3208.9,3208.8,0.1158277]
[1720954343103,4.37235949,3208.9,3208.8,0.1158277]
[1720954343587,6.64454252,3208.9,3208.8,0.1158277]
[1720954344018,6.56662516,3208.9,3208.8,0.1158277]
[1720954344220,3.33730259,3208.9,3208.8,0.1158277]
[1720954345550,1.08000259,3208.9,3208.8,0.1158277]
[1720954345844,3.02807065,3208.9,3208.8,0.1158277]
[1720954346007,3.02803522,3208.9,3208.8,0.1158277]
[1720954346648,5.5890527,3208.9,3208.8,0.1158277]
[1720954346837,4.45446292,3208.9,3208.8,0.1158277]
[1720954347009,4.53238653,3208.9,3208.8,0.1158277]
[1720954347407,3.56298756,3208.9,3208.8,0.1158277]
[1720954347869,1.07988756,3208.9,3208.8,0.1158277]
[1720954348416,3.0280658,3208.9,3208.8,0.1158277]
[1720954348945,3.32570088,3209.1,3208.8,0.1158277]
[1720954349172,3.02815384,3208.9,3208.8,0.1158277]
[1720954349321,1.07988274,3208.9,3208.8,0.1158277]
[1720954349517,1.07988274,3209.0,3208.8,0.1158277]
[1720954349720,1.94830745,3208.9,3208.8,0.1158277]
[1720954350063,1.07988274,3208.9,3208.8,0.1158277]
[1720954350221,1.07988274,3209.0,3208.8,0.1158277]
[1720954350426,1.94833879,3208.9,3208.8,0.1158277]
[1720954350623,3.02822153,3208.9,3208.8,0.1158277]
[1720954352237,3.32570088,3209.1,3208.8,0.1158277]
[1720954352449,1.94830682,3208.9,3208.8,0.1158277]
[1720954352618,3.0281963,3208.9,3208.8,0.1158277]
[1720954354662,3.47388948,3208.9,3208.8,0.1158277]
[1720954354819,4.1092792,3208.9,3208.8,0.1158277]
[1720954355340,6.38230382,3208.9,3208.8,0.1158277]
[1720954355649,6.38236114,3208.9,3208.8,0.1158277]
[1720954356156,6.38236251,3208.9,3208.8,0.1158277]
[1720954356511,7.10938982,3208.9,3208.8,0.1158277]
[1720954357130,9.79433882,3208.9,3208.8,0.1158277]
[1720954357449,7.10938982,3208.9,3208.8,0.1158277]
[1720954358357,7.65938982,3208.9,3208.8,0.1158277]
[1720954358858,7.6594885,3208.9,3208.8,0.1158277]
[1720954359039,6.57938972,3208.9,3208.8,0.1158277]
[1720954359239,7.6594859,3208.9,3208.8,0.1158277]
[1720954362036,6.02938972,3208.9,3208.8,0.1158277]
[1720954362336,7.10948481,3208.9,3208.8,0.1158277]
[1720954362582,6.47409509,3208.9,3208.8,0.1158277]
[1720954362783,6.35218293,3208.9,3208.8,0.1158277]
[1720954362940,4.08009509,3208.9,3208.8,0.1158277]
[1720954365453,4.07994495,3208.9,3208.8,0.1158277]
[1720954366680,6.35285946,3208.9,3208.8,0.1158277]
[1720954366840,4.07994495,3208.9,3208.8,0.1158277]
[1720954367468,1.07994495,3208.9,3208.8,0.1158277]
[1720954368841,1.079947,3208.9,3208.8,0.1158277]
[1720954369273,1.0799514,3208.9,3208.8,0.1158277]
[1720954372080,1.07995287,3208.9,3208.8,0.1158277]
[1720954372693,6.5173983,3208.9,3208.8,0.1158277]
[1720954372989,4.24423461,3208.9,3208.8,0.1158277]
[1720954373988,7.32216365,3208.9,3208.8,0.1158277]
[1720954374351,10.55733826,3208.9,3208.8,0.1158277]
[1720954374746,7.87216365,3208.9,3208.8,0.1158277]
[1720954375180,6.79221078,3208.9,3208.8,0.1158277]
[1720954375380,10.55684788,3208.9,3208.8,0.1158277]
[1720954376087,7.87232319,3208.9,3208.8,0.1158277]
[1720954376583,10.55684788,3208.9,3208.8,0.1158277]
[1720954377021,7.87232319,3208.9,3208.8,0.1158277]
[1720954377525,10.55684788,3208.9,3208.8,0.1158277]
[1720954377693,7.87232319,3208.9,3208.8,0.1158277]
[1720954378497,7.87229517,3208.9,3208.8,0.1158277]
[1720954379025,7.32229517,3208.9,3208.8,0.1158277]
[1720954379331,7.24436613,3208.9,3208.8,0.1158277]
[1720954381623,7.24437218,3208.9,3208.8,0.1158277]
[1720954384223,7.24434318,3208.9,3208.8,0.1158277]
[1720954384423,10.47822445,3208.9,3208.8,0.1158277]
[1720954387524,10.47828131,3208.9,3208.8,0.1158277]
[1720954388727,7.79441911,3208.9,3208.8,0.1158277]
[1720954390758,6.71428174,3208.9,3208.8,0.1158277]
[1720954390964,7.7945148,3208.9,3208.8,0.1158277]
[1720954392558,9.2945148,3208.9,3208.8,0.1158277]
[1720954392737,12.51298693,3208.9,3208.8,0.1158277]
[1720954393841,12.51243169,3208.9,3208.8,0.1158277]
[1720954394158,7.7945148,3208.9,3208.8,0.1158277]
[1720954394351,11.01246367,3208.9,3208.8,0.1158277]
[1720954394560,11.01248915,3208.9,3208.8,0.1158277]
[1720954394765,7.79454028,3208.9,3208.8,0.1158277]
[1720954397091,7.24454028,3208.9,3208.8,0.1158277]
[1720954397245,6.16428174,3208.9,3208.8,0.1158277]
[1720954397584,7.3224299,3208.9,3208.8,0.1158277]
[1720954398290,9.92569214,3208.9,3208.8,0.1158277]
[1720954398579,1.08021255,3208.9,3208.8,0.1158277]
[1720954398951,3.35031433,3208.9,3208.8,0.1158277]
[1720954400182,6.35031433,3208.9,3208.8,0.1158277]
[1720954400681,6.35073862,3208.9,3208.8,0.1158277]
[1720954401247,4.15797553,3208.9,3208.8,0.1158277]
[1720954401445,7.55682167,3208.9,3208.8,0.1158277]
[1720954401651,9.84622167,3208.9,3208.8,0.1158277]
[1720954401869,7.71396849,3208.9,3208.8,0.1158277]
[1720954403796,7.71415244,3208.9,3208.8,0.1158277]
[1720954404479,12.43210131,3208.9,3208.8,0.1158277]
[1720954405630,12.43265959,3208.9,3208.8,0.1158277]
[1720954406690,10.93265959,3208.9,3208.8,0.1158277]
[1720954407091,7.71417369,3208.9,3208.8,0.1158277]
[1720954407588,7.71417345,3208.9,3208.8,0.1158277]
[1720954407999,10.9326806,3208.9,3208.8,0.1158277]
[1720954409699,12.4326806,3208.9,3208.8,0.1158277]
[1720954409919,9.21417345,3208.9,3208.8,0.1158277]
[1720954410114,12.43237916,3208.9,3208.8,0.1158277]
[1720954410315,9.21426008,3208.9,3208.8,0.1158277]
[1720954410515,9.21425254,3208.9,3208.8,0.1158277]
[1720954411023,7.71425254,3208.9,3208.8,0.1158277]
[1720954411396,10.93198589,3208.9,3208.8,0.1158277]
[1720954411921,7.71425254,3208.9,3208.8,0.1158277]
[1720954412493,10.93198589,3208.9,3208.8,0.1158277]
[1720954413441,7.71425254,3208.9,3208.8,0.1158277]
[1720954413593,7.71413426,3208.9,3208.8,0.1158277]
[1720954413787,4.79680683,3208.9,3208.8,0.1158277]
[1720954414097,4.87474096,3208.9,3208.8,0.1158277]
[1720954414992,5.42474096,3208.9,3208.8,0.1158277]
[1720954415422,2.42474096,3208.9,3208.8,0.1158277]
[1720954415622,5.42474096,3208.9,3208.8,0.1158277]
[1720954416918,5.42472171,3208.9,3208.8,0.1158277]
[1720954418891,8.64245506,3208.9,3208.8,0.1158277]
[1720954419088,7.56226044,3208.9,3208.8,0.1158277]
[1720954419294,8.64247703,3208.9,3208.8,0.1158277]
[1720954420203,7.48432631,3208.9,3208.8,0.1158277]
[1720954420407,8.56453066,3208.9,3208.8,0.1158277]
[1720954420638,5.34679731,3208.9,3208.8,0.1158277]
[1720954420837,4.63021774,3208.9,3208.8,0.1158277]
[1720954421040,7.31501584,3208.9,3208.8,0.1158277]
[1720954421703,4.08021774,3208.9,3208.8,0.1158277]
[1720954422104,1.08021774,3208.9,3208.8,0.1158277]
[1720954422342,1.08021774,3208.9,3208.8,2.6151277]
[1720954422550,1.08021774,3208.9,3208.8,2.66237329]
[1720954422700,1.08021774,3208.9,3208.8,2.92911062]
[1720954423127,3.02845594,3208.9,3208.8,2.92911062]
[1720954423347,1.07984782,3208.9,3208.8,2.92911062]
[1720954424311,1.29832231,3209.0,3208.8,2.92911062]
[1720954424730,1.62402319,3209.1,3208.8,2.92911062]
[1720954424913,1.62402319,3209.1,3208.9,0.29291106]
[1720954425248,1.62402319,3209.1,3209.0,2.54608542]
[1720954425249,0.32570088,3209.1,3209.0,2.54608542]
[1720954426861,0.32570088,3209.1,3209.0,5.03906542]
[1720954427417,1.29832231,3209.8,3209.1,2.4394]
[1720954427644,1.29832231,3209.8,3209.0,2.53976542]
[1720954427645,0.32643197,3209.5,3209.4,2.4394]
[1720954428146,0.32643197,3209.5,3209.4,2.48568374]
[1720954445336,0.32643197,3209.5,3209.4,0.04628374]
[1720954445747,0.32643197,3209.5,3209.2,0.49791654]
[1720954445980,0.32643197,3209.5,3209.4,0.0461391]
[1720954446186,0.32643197,3209.5,3209.3,0.04623971]
[1720954446488,0.32643197,3209.5,3209.4,0.0461391]
[1720954446943,0.32643197,3209.5,3209.2,0.49791654]
[1720954447139,0.32643197,3209.5,3209.4,0.0461391]
[1720954447381,0.32643197,3209.5,3209.3,0.04623971]
[1720954447539,0.32643197,3209.5,3209.4,0.04614272]
[1720954447945,0.32643197,3209.5,3208.8,9.6557294]
[1720954448141,0.32643197,3209.5,3209.4,0.04613913]
[1720954448343,0.32643197,3209.5,3208.8,12.1488694]
[1720954448563,0.32643197,3209.5,3209.4,0.04613913]
[1720954448783,0.32643197,3209.5,3208.8,9.6557294]
[1720954448939,0.32643197,3209.5,3209.4,0.04613913]
[1720954449142,0.32643197,3209.5,3208.8,9.6557294]
[1720954449341,0.32643197,3209.5,3209.4,0.04613913]
[1720954449568,0.32643197,3209.5,3208.8,9.6557294]
[1720954449770,0.32643197,3209.5,3209.4,0.04613913]
[1720954449946,0.32643197,3209.5,3208.9,0.96557294]
[1720954450150,0.32643197,3209.5,3209.4,0.04613913]
[1720954450378,0.32643197,3209.5,3208.9,0.96557294]
[1720954450552,0.32643197,3209.5,3209.4,0.04613913]
[1720954451175,1.4061014,3209.5,3208.8,9.6557294]
[1720954451381,0.32643197,3209.5,3209.4,0.04613913]
[1720954451553,0.32643197,3209.5,3208.8,10.87112934]
[1720954451554,2.4083,3209.4,3208.8,7.2099294]
[1720954451757,1.07967668,3209.3,3208.8,7.2099294]
[1720954451956,1.07976957,3209.2,3208.8,7.2099294]
[1720954452164,1.07976957,3209.1,3208.8,7.2099294]
[1720954452357,1.07976957,3209.3,3208.8,7.2099294]
[1720954452559,0.32643246,3209.0,3208.8,7.2099294]
[1720954452795,1.07976957,3208.9,3208.8,7.2099294]
[1720954453349,1.07976957,3208.9,3208.8,7.25667223]
[1720954454675,1.07976957,3208.9,3208.8,0.16257053]
[1720954455388,1.07982292,3208.9,3208.8,0.16257053]
[1720954455791,3.48812292,3208.9,3208.8,0.16257053]
[1720954456652,1.07982292,3208.9,3208.8,0.16257053]
[1720954457796,0.32643246,3209.0,3208.8,0.16257053]
[1720954457955,0.32643246,3209.0,3208.8,0.42390758]
[1720954462174,0.32643246,3209.0,3208.8,0.48623041]
[1720954462356,0.32643246,3209.0,3208.8,0.42390758]
[1720954472072,0.32643246,3209.0,3208.8,0.16257053]
[1720954472284,1.07975539,3208.9,3208.8,0.16257053]
[1720954472665,0.32643246,3209.0,3208.8,0.16257053]
[1720954472873,1.07974059,3208.9,3208.8,0.16257053]
[1720954473096,1.07974671,3208.9,3208.8,0.16257053]
[1720954473702,0.32643246,3209.0,3208.8,0.16257053]
[1720954473980,1.0797376,3208.9,3208.8,0.16257053]
[1720954474990,1.0797338,3208.9,3208.8,0.16257053]
[1720954476114,0.32643246,3209.0,3208.8,0.16257053]
[1720954477000,0.32643246,3209.0,3208.9,0.26557405]
[1720954477404,0.32643246,3209.0,3208.9,0.31233101]
[1720954478913,1.40609165,3209.0,3208.9,0.31233101]
[1720954479214,0.32643246,3209.0,3208.9,0.31233101]
[1720954482727,1.40608729,3209.0,3208.9,0.31233101]
[1720954483435,1.40608729,3209.0,3208.9,0.04675696]
[1720954483985,3.79638729,3209.0,3208.9,0.04675696]
[1720954484526,5.42059313,3209.0,3208.9,0.04675696]
[1720954485130,5.42113877,3209.0,3208.9,0.04675696]
[1720954485329,3.79654891,3209.0,3208.9,0.04675696]
[1720954485542,4.34148356,3209.0,3208.9,0.04675696]
[1720954485693,5.42128808,3209.0,3208.9,0.04675696]
[1720954486014,3.79653698,3209.0,3208.9,0.04675696]
[1720954488329,3.79649325,3209.0,3208.9,0.04675696]
[1720954489034,1.40619325,3209.0,3208.9,0.04675696]
[1720954489210,3.03145511,3209.0,3208.9,0.04675696]
[1720954489716,1.40619325,3209.0,3208.9,0.04675696]
[1720954491510,0.32643246,3209.0,3208.9,0.04675696]
[1720954491715,1.40624095,3209.0,3208.9,0.04675696]
[1720954492729,3.87584095,3209.0,3208.9,0.04675696]
[1720954498028,1.40624095,3209.0,3208.9,0.04675696]
[1720954498323,3.03263297,3209.0,3208.9,0.04675696]
[1720954498723,1.40615024,3209.0,3208.9,0.04675696]
[1720954500744,2.70782345,3209.0,3208.9,0.31233643]
[1720954500924,1.40613018,3209.0,3208.9,0.31233643]
[1720954501551,2.7078149,3209.0,3208.9,0.31233643]
[1720954502242,1.62812692,3209.0,3208.9,2.80539643]
[1720954502445,2.70777806,3209.0,3208.9,2.80539643]
[1720954502651,2.70776319,3209.0,3208.9,2.80539643]
[1720954502812,2.70776319,3209.0,3208.9,0.31233643]
[1720954503135,1.40606873,3209.0,3208.9,0.31233643]
[1720954503336,1.62812692,3209.0,3208.9,0.31233643]
[1720954503540,0.32643246,3209.0,3208.9,0.31233643]
[1720954504229,1.62812692,3209.0,3208.9,0.31233643]
[1720954504542,0.32643246,3209.0,3208.9,0.31233643]
[1720954505049,1.40608432,3209.0,3208.9,0.31233643]
[1720954505257,1.40608432,3209.0,3208.9,0.04675696]
[1720954505548,3.78018432,3209.0,3208.9,0.04675696]
[1720954507345,3.78028516,3209.0,3208.9,0.04675696]
[1720954507716,1.40618516,3209.0,3208.9,0.04675696]
[1720954507911,1.40618516,3209.0,3208.8,0.1158277]
[1720954507912,3.03356625,3209.0,3208.8,0.1158277]